bitfinex-derivatives/quotes_SOLF0:USTF0_20250720
["timestamp","ask_amount","ask_price","bid_price","bid_amount"]
[1753005969183,3.14,180.07,179.93,4.64401259]
[1753005969382,3.14,180.07,179.95,7.83401259]
[1753005969584,3.14,180.07,179.96,3.19]
[1753005969888,3.14,180.05,180.01,3.19]
[1753005970188,3.14,180.05,179.96,3.19]
[1753005970488,3.14,180.04,180.01,3.19]
[1753005970788,3.14,180.04,179.96,3.19]
[1753005971083,3.14,180.04,179.95,4.64401259]
[1753005971290,3.14,180.04,179.96,3.19]
[1753005971482,3.14,180.08,179.95,4.64401259]
[1753005971687,3.14,180.08,179.96,3.19]
[1753005971990,3.14,180.08,180.04,5.5512]
[1753005972288,3.14,180.08,180.03,3.19]
[1753005972488,3.14,180.07,180.04,3.19]
[1753005972880,3.14,180.07,180.03,3.19]
[1753005973684,3.14,180.07,180.03,8.7416]
[1753005973885,3.14,180.07,180.04,3.19]
[1753005974687,3.14,180.07,179.95,3.19]
[1753005975285,3.14,180.07,180.04,5.5511]
[1753005975484,3.14,180.08,179.96,4.64401259]
[1753005975689,3.14,180.08,179.98,4.64401259]
[1753005975894,102.06,180.15,180.0,4.64401259]
[1753005975895,3.14,180.1,180.0,4.64401259]
[1753005976190,3.14,180.1,180.02,3.19]
[1753005976384,3.14,180.1,180.07,5.5503]
[1753005976583,3.14,180.1,180.09,3.19]
[1753005977888,3.14,180.1,180.07,8.7403]
[1753005978089,3.14,180.1,180.08,3.19]
[1753005978288,3.14,180.1,180.0,3.19]
[1753005978987,3.14,180.1,180.05,5.5509]
[1753005979192,3.14,180.1,179.98,3.19]
[1753005979889,3.14,180.1,180.08,3.19]
[1753005980589,3.14,180.1,180.09,3.19]
[1753005986397,3.14,180.1,180.08,5.5499]
[1753005986595,3.14,180.1,180.08,8.7399]
[1753005987197,3.14,180.1,180.07,5.5504]
[1753005987396,3.14,180.1,180.07,8.7404]
[1753005987597,3.14,180.1,180.07,3.19]
[1753005988592,3.14,180.1,180.09,5.5498]
[1753005988794,3.14,180.1,180.09,8.8098]
[1753005988994,3.14,180.1,179.99,3.26]
[1753005989794,3.14,180.1,180.07,5.5502]
[1753005989994,3.14,180.1,180.07,3.26]
[1753005991198,3.14,180.1,179.99,3.26]
[1753005991694,102.02,180.17,179.99,3.26]
[1753005991695,3.09,180.16,179.99,3.26]
[1753005991902,3.09,180.15,179.99,3.26]
[1753005992399,3.09,180.07,179.99,3.26]
[1753005993099,3.09,180.07,180.03,5.5516]
[1753005993599,3.09,180.07,180.03,8.8116]
[1753005994695,3.09,180.07,180.04,5.5513]
[1753005995091,3.09,180.06,180.05,3.26]
[1753005995490,3.09,180.08,180.05,3.26]
[1753005995701,3.09,180.07,180.05,3.26]
[1753005995900,3.09,180.07,180.06,5.5508]
[1753005996099,3.09,180.07,180.06,8.8108]
[1753005996502,3.09,180.11,179.98,11.1064]
[1753005996696,102.02,180.17,179.98,11.1064]
[1753005996697,3.09,180.16,180.09,3.26]
[1753005997302,3.09,180.13,180.1,5.5495]
[1753006002202,3.09,180.13,180.09,3.26]
[1753006002406,3.09,180.13,180.11,5.5492]
[1753006003207,8.638,180.16,180.12,5.5488]
[1753006003503,8.638,180.16,180.03,11.1034]
[1753006003504,3.09,180.16,180.04,3.26]
[1753006004003,3.09,180.14,180.1,3.26]
[1753006004212,3.09,180.14,180.03,11.1034]
[1753006004408,3.09,180.14,180.11,3.26]
[1753006004808,3.09,180.14,180.12,5.5489]
[1753006005710,3.09,180.14,180.11,8.8091]
[1753006007810,3.09,180.14,180.1,5.5494]
[1753006007811,3.09,180.13,180.1,5.5494]
[1753006008004,3.09,180.13,180.1,8.8094]
[1753006008411,3.09,180.12,180.1,8.8094]
[1753006010112,3.09,180.12,180.1,5.5494]
[1753006010611,3.09,180.12,180.1,8.8094]
[1753006011014,3.09,180.12,180.07,3.26]
[1753006011211,3.09,180.12,180.05,3.26]
[1753006011415,101.96,180.11,179.99,3.26]
[1753006011610,3.09,180.1,180.01,3.26]
[1753006012305,3.09,180.07,180.01,3.26]
[1753006013109,101.96,180.11,180.01,3.26]
[1753006013305,3.09,180.1,180.01,3.26]
[1753006013505,101.96,180.11,179.98,4.63695394]
[1753006013706,3.09,180.09,180.08,3.26]
[1753006014309,3.09,180.11,180.08,3.26]
[1753006014914,3.09,180.1,180.09,5.5498]
[1753006015215,3.09,180.1,180.09,8.8098]
[1753006016108,3.09,180.12,180.11,3.26]
[1753006016510,3.09,180.12,180.11,8.8092]
[1753006016719,3.09,180.12,180.11,3.26]
[1753006017018,3.09,180.12,180.09,8.8096]
[1753006017412,3.09,180.17,180.03,3.26]
[1753006017613,3.09,180.17,180.04,4.63695394]
[1753006017820,3.09,180.17,180.05,3.26]
[1753006018116,5.5479,180.16,180.05,3.26]
[1753006018312,3.0,180.18,180.05,3.26]
[1753006018916,5.548,180.15,180.05,3.26]
[1753006019117,3.0,180.14,180.05,3.26]
[1753006020318,3.0,180.13,180.06,3.07]
[1753006020719,8.5487,180.13,180.09,5.5496]
[1753006020918,3.0,180.12,180.09,8.6196]
[1753006021423,3.0,180.16,180.02,4.66941907]
[1753006021619,3.0,180.16,180.05,7.73941907]
[1753006021912,5.5482,180.15,180.11,5.549]
[1753006022121,3.0,180.14,180.12,3.07]
[1753006022619,3.0,180.14,180.12,8.6189]
[1753006023018,3.0,180.13,180.12,8.6189]
[1753006025512,5.5474,180.17,180.14,5.5483]
[1753006025715,3.0,180.16,180.14,5.5483]
[1753006028125,9.21851645,180.16,180.14,5.5483]
[1753006028320,9.21851645,180.15,180.02,3.07]
[1753006028520,3.0,180.15,180.02,3.07]
[1753006028720,3.0,180.15,180.14,5.5483]
[1753006031926,3.0,180.15,180.13,8.6185]
[1753006032127,6.21851645,180.16,180.13,5.5485]
[1753006032329,3.0,180.14,180.13,5.5485]
[1753006032926,3.0,180.14,180.13,8.6185]
[1753006039629,3.0,180.14,180.13,5.5485]
[1753006040423,3.0,180.14,180.13,8.6185]
[1753006040930,3.0,180.19,180.13,3.07]
[1753006041620,3.0,180.19,180.18,5.547]
[1753006041930,3.0,180.19,180.16,3.07]
[1753006042332,3.0,180.18,180.09,3.07]
[1753006043433,5.5475,180.17,180.09,3.07]
[1753006043634,3.0,180.18,180.09,3.07]
[1753006044436,5.5477,180.16,180.13,5.5483]
[1753006044735,3.0,180.14,180.13,8.6183]
[1753006045836,3.0,180.14,180.13,5.5483]
[1753006047132,3.0,180.13,180.09,3.07]
[1753006047636,3.0,180.13,180.1,3.07]
[1753006047839,8.5486,180.13,180.1,8.6193]
[1753006048038,3.05,180.12,180.1,8.6193]
[1753006048739,3.05,180.12,180.11,5.5492]
[1753006049138,3.05,180.12,180.11,8.5392]
[1753006050641,3.05,180.12,180.11,5.5492]
[1753006050935,3.05,180.12,180.11,8.5392]
[1753006051141,108.17851645,180.21,180.11,2.99]
[1753006051338,5.5468,180.19,180.11,2.99]
[1753006051538,3.05,180.18,180.15,5.5479]
[1753006051737,3.05,180.18,180.15,8.5379]
[1753006052138,3.05,180.17,180.14,2.99]
[1753006052342,3.05,180.17,180.08,2.99]
[1753006052736,3.05,180.17,180.1,5.5495]
[1753006053134,3.05,180.13,180.09,8.5397]
[1753006053544,3.05,180.13,180.09,2.99]
[1753006054543,3.05,180.13,180.1,2.99]
[1753006055845,3.05,180.13,180.1,8.5394]
[1753006056047,3.05,180.13,180.08,2.99]
[1753006056242,3.05,180.13,180.09,2.99]
[1753006056539,5.5486,180.13,180.09,2.99]
[1753006056744,3.05,180.12,180.09,2.99]
[1753006057041,3.05,180.12,180.08,2.99]
[1753006057949,3.05,180.11,180.08,2.99]
[1753006060750,3.05,180.11,180.07,5.5504]
[1753006060947,3.05,180.11,180.09,2.99]
[1753006064246,3.05,180.11,180.05,2.99]
[1753006065151,5.55,180.09,180.05,2.99]
[1753006065352,3.05,180.08,180.05,2.99]
[1753006065651,3.05,180.08,180.05,5.5508]
[1753006065854,3.05,180.08,180.06,2.99]
[1753006073156,3.05,180.08,180.04,5.5513]
[1753006073358,3.05,180.08,180.05,2.99]
[1753006073653,3.05,180.16,179.97,2.99]
[1753006074152,3.05,180.06,180.03,2.99]
[1753006074755,3.05,180.06,180.04,2.99]
[1753006074958,3.05,180.06,180.03,5.5516]
[1753006075156,3.05,180.06,180.05,2.99]
[1753006082862,3.05,180.13,180.05,2.99]
[1753006083364,3.05,180.13,180.08,5.5499]
[1753006083564,3.05,180.13,180.09,3.19]
[1753006084163,3.05,180.12,180.09,3.19]
[1753006085158,3.05,180.12,180.08,3.19]
[1753006085656,3.05,180.11,180.09,3.19]
[1753006089364,6.19730754,180.18,180.09,3.19]
[1753006089570,3.05,180.11,180.03,3.19]
[1753006089962,5.5503,180.08,180.03,3.19]
[1753006090165,3.05,180.07,180.03,3.19]
[1753006090361,3.05,180.06,180.03,3.19]
[1753006091064,3.05,180.06,180.03,8.7416]
[1753006091269,3.05,180.06,180.04,3.19]
[1753006091570,3.05,180.05,179.98,4.66057079]
[1753006091771,3.05,180.05,180.01,5.5521]
[1753006091972,3.05,180.05,179.98,3.19]
[1753006092170,3.05,180.07,179.98,3.19]
[1753006092575,3.05,180.06,180.02,5.5519]
[1753006092771,3.05,180.06,180.03,3.19]
[1753006093272,5.5507,180.06,180.03,3.19]
[1753006093576,3.05,180.05,180.01,5.5522]
[1753006093774,3.05,180.05,180.03,3.19]
[1753006093973,5.5513,180.05,180.03,3.19]
[1753006094274,3.05,180.04,180.01,3.19]
[1753006094474,3.05,180.03,180.01,3.19]
[1753006095269,5.5512,180.05,180.02,3.19]
[1753006095475,3.05,180.04,180.02,3.19]
[1753006095872,5.5514,180.04,180.01,3.19]
[1753006096082,3.05,180.01,179.95,378.02057079]
[1753006096574,3.05,180.01,179.96,3.19]
[1753006096775,3.05,180.0,179.97,3.19]
[1753006097175,3.05,179.99,179.97,3.19]
[1753006097473,6.19730754,180.09,179.98,3.19]
[1753006097673,3.05,180.08,179.98,3.19]
[1753006097873,5.5516,180.04,179.98,3.19]
[1753006098072,3.05,180.03,179.98,3.19]
[1753006098578,8.6017,180.03,179.98,8.743]
[1753006098870,3.05,180.02,179.99,3.19]
[1753006099075,5.5517,180.03,179.99,3.19]
[1753006099373,3.05,180.01,179.99,3.19]
[1753006099969,3.05,180.01,180.0,3.19]
[1753006102375,3.05,180.0,179.98,5.5532]
[1753006102974,3.05,180.0,179.99,3.19]
[1753006103381,3.05,180.0,179.93,106.64057079]
[1753006103382,3.05,180.0,179.96,5.5535]
[1753006103575,3.05,180.0,179.97,3.19]
[1753006104075,3.05,179.99,179.97,3.19]
[1753006104577,6.19730754,180.07,179.97,3.19]
[1753006104772,11.098,180.12,179.93,4.66057079]
[1753006104773,3.05,180.06,179.93,4.66057079]
[1753006104977,3.05,180.06,179.94,3.19]
[1753006105275,3.05,180.02,179.99,3.19]
[1753006105580,3.05,180.02,180.0,3.19]
[1753006105968,3.05,180.01,179.99,5.5528]
[1753006106168,3.05,180.03,179.99,5.5528]
[1753006106675,8.6018,180.03,180.01,3.19]
[1753006106869,3.05,180.02,180.0,3.19]
[1753006107880,3.05,180.01,179.99,5.5528]
[1753006108381,3.02,180.02,180.0,3.23]
[1753006108586,3.02,180.04,180.01,3.23]
[1753006108880,3.02,180.03,180.01,3.23]
[1753006109684,3.02,180.03,180.02,3.23]
[1753006109882,3.02,180.03,180.0,3.23]
[1753006110280,8.5718,180.03,180.01,3.23]
[1753006110479,3.02,180.02,180.01,3.23]
[1753006111082,8.572,180.02,180.01,3.23]
[1753006111479,3.02,180.02,179.99,3.23]
[1753006111688,3.02,180.0,179.97,3.23]
[1753006112485,3.02,180.0,179.89,4.66057079]
[1753006112682,5.5534,179.98,179.93,5.5546]
[1753006112882,3.02,179.97,179.96,3.23]
[1753006113084,3.02,179.97,179.89,4.66057079]
[1753006113286,3.02,179.96,179.93,3.23]
[1753006113487,3.02,179.95,179.93,3.23]
[1753006113678,3.02,179.95,179.94,3.23]
[1753006113984,3.02,179.95,179.92,3.23]
[1753006114387,8.5743,179.95,179.92,3.23]
[1753006114586,3.02,179.93,179.92,3.23]
[1753006116590,8.575,179.93,179.85,475.52]
[1753006116792,3.02,179.92,179.91,3.23]
[1753006117387,3.02,179.93,179.91,3.23]
[1753006117890,3.02,179.93,179.85,475.52]
[1753006117891,3.02,179.93,179.92,3.23]
[1753006118091,8.5748,179.93,179.92,3.23]
[1753006119194,3.02,179.93,179.87,3.23]
[1753006120291,3.02,179.91,179.88,3.23]
[1753006120592,17.30240754,180.01,179.88,3.23]
[1753006120791,3.02,179.91,179.89,3.23]
[1753006121590,3.02,179.9,179.87,5.5565]
[1753006121995,3.02,179.9,179.88,3.23]
[1753006122494,3.02,179.9,179.88,8.7862]
[1753006122696,5.5549,179.93,179.84,3.23]
[1753006123002,3.02,179.92,179.84,3.23]
[1753006124197,3.02,179.92,179.91,3.23]
[1753006125490,3.02,179.91,179.89,3.23]
[1753006125695,11.1051,180.01,179.89,3.23]
[1753006125897,3.02,179.9,179.89,3.23]
[1753006130404,3.02,179.9,179.87,5.5565]
[1753006130405,3.02,179.9,179.87,8.7865]
[1753006130692,3.02,179.9,179.86,3.23]
[1753006130891,3.02,179.9,179.84,3.23]
[1753006131491,3.02,179.85,179.83,3.23]
[1753006131693,3.02,179.84,179.83,3.23]
[1753006131888,3.02,179.84,179.81,3.23]
[1753006132088,3.02,179.83,179.82,3.23]
[1753006132499,3.02,179.84,179.83,3.23]
[1753006135201,3.02,179.94,179.83,3.23]
[1753006135901,3.02,179.97,179.83,3.23]
[1753006136400,102.2,179.99,179.83,3.23]
[1753006136590,3.02,179.98,179.83,3.23]
[1753006136897,3.02,179.92,179.89,3.23]
[1753006137292,3.02,179.91,179.89,3.23]
[1753006137602,3.02,179.91,179.78,167.49799765]
[1753006137797,3.02,179.91,179.9,3.23]
[1753006139101,5.5548,179.93,179.9,3.23]
[1753006139297,3.21,179.98,179.9,3.23]
[1753006140501,3.21,179.92,179.9,3.23]
[1753006140703,3.21,179.92,179.82,3.12]
[1753006140902,3.21,179.9,179.82,3.12]
[1753006142507,3.21,179.85,179.83,3.12]
[1753006142805,3.21,179.84,179.83,3.12]
[1753006143106,3.21,179.83,179.82,3.12]
[1753006143411,3.21,179.94,179.83,3.12]
[1753006144501,3.21,179.94,179.84,3.12]
[1753006144907,5.5558,179.9,179.86,5.5569]
[1753006145109,8.7658,179.9,179.87,3.12]
[1753006145807,5.5558,179.9,179.86,5.5569]
[1753006146013,3.21,179.89,179.88,3.12]
[1753006146308,8.7655,179.91,179.88,3.12]
[1753006146909,3.21,179.91,179.89,3.12]
[1753006147319,8.7654,179.91,179.9,3.12]
[1753006147813,3.21,179.91,179.88,3.12]
[1753006148019,3.21,179.91,179.8,3.12]
[1753006148615,5.5565,179.88,179.8,3.12]
[1753006148814,3.21,179.91,179.8,3.12]
[1753006149309,3.21,179.91,179.84,3.12]
[1753006150004,3.21,179.86,179.84,3.12]
[1753006150210,3.21,179.86,179.85,3.12]
[1753006153023,8.7669,179.86,179.85,3.12]
[1753006153413,8.7669,179.86,179.78,162.83742686]
[1753006153716,3.21,179.85,179.84,3.12]
[1753006158427,3.21,179.85,179.82,5.558]
[1753006158720,3.21,179.85,179.78,167.50322192]
[1753006158920,3.21,179.84,179.78,167.50322192]
[1753006159123,3.21,179.84,179.79,3.12]
[1753006160022,3.21,179.83,179.8,5.5585]
[1753006160223,3.21,179.83,179.81,3.12]
[1753006160519,8.7678,179.83,179.81,3.12]
[1753006160826,8.7678,179.83,179.79,5.559]
[1753006160827,3.21,179.82,179.79,3.12]
[1753006161319,6.19730754,179.89,179.76,3.12]
[1753006161320,3.21,179.88,179.76,3.12]
[1753006161722,3.21,179.88,179.73,4.66579506]
[1753006161723,5.5584,179.82,179.77,5.5595]
[1753006161920,3.21,179.81,179.78,3.12]
[1753006162426,3.21,179.8,179.76,3.12]
[1753006163125,3.21,179.8,179.77,5.5596]
[1753006163327,8.7688,179.8,179.78,3.12]
[1753006163526,3.21,179.79,179.78,3.12]
[1753006163825,3.21,179.79,179.76,5.5598]
[1753006164026,3.21,179.78,179.77,3.12]
[1753006164723,3.21,179.78,179.77,8.6797]
[1753006165123,5.5586,179.81,179.77,5.5597]
[1753006165521,3.21,179.79,179.78,3.12]
[1753006170627,6.19730754,179.89,179.78,3.12]
[1753006170830,11.1108,179.91,179.78,3.12]
[1753006170831,3.25,179.9,179.78,3.12]
[1753006171427,3.25,179.9,179.79,3.05]
[1753006171624,8.8059,179.9,179.8,3.05]
[1753006171933,3.25,179.89,179.88,3.05]
[1753006172532,5.5555,179.91,179.88,3.05]
[1753006172833,3.25,179.98,179.89,3.05]
[1753006173334,3.25,179.98,179.89,8.6059]
[1753006173529,5.5549,179.93,179.89,8.6059]
[1753006173737,3.25,179.91,179.9,3.05]
[1753006174534,3.25,179.91,179.9,8.6057]
[1753006174734,3.25,179.93,179.9,5.5557]
[1753006175135,3.25,179.93,179.92,3.05]
[1753006175530,102.14,179.99,179.92,8.605]
[1753006175830,102.14,179.99,179.94,3.05]
[1753006175831,3.25,179.95,179.94,3.05]
[1753006176031,3.25,179.95,179.94,8.6044]
[1753006176232,3.25,179.95,179.94,3.05]
[1753006177231,3.25,179.97,179.86,4.66579506]
[1753006177437,3.25,179.97,179.87,3.05]
[1753006177837,3.25,179.97,179.88,3.05]
[1753006178029,3.25,179.97,179.89,3.05]
[1753006178435,3.25,179.95,179.93,8.6047]
[1753006178638,3.25,179.94,179.93,8.6047]
[1753006180740,3.25,179.94,179.93,3.05]
[1753006182139,3.25,179.94,179.92,3.05]
[1753006182440,3.25,179.93,179.92,3.05]
[1753006182633,3.25,179.93,179.9,3.05]
[1753006182834,3.25,179.99,179.91,3.05]
[1753006183540,3.25,179.92,179.84,102.32]
[1753006183939,3.25,179.91,179.84,102.32]
[1753006184140,3.25,179.91,179.85,3.05]
[1753006185541,3.25,179.91,179.87,5.5564]
[1753006185760,3.25,179.91,179.88,3.05]
[1753006186547,3.25,179.91,179.88,8.6063]
[1753006186747,3.25,179.91,179.89,3.05]
[1753006186944,3.25,179.9,179.89,3.05]
[1753006188849,3.25,179.9,179.85,3.05]
[1753006190651,3.25,179.9,179.88,3.05]
[1753006191149,3.25,179.9,179.88,8.6063]
[1753006191348,3.25,179.9,179.84,102.32]
[1753006191349,3.25,179.99,179.85,3.05]
[1753006191650,3.25,179.97,179.89,5.5558]
[1753006191847,3.25,179.97,179.9,3.05]
[1753006192242,3.25,179.97,179.9,8.6055]
[1753006192449,3.25,179.97,179.9,3.05]
[1753006193051,3.25,179.97,179.83,4.66579506]
[1753006193251,3.25,179.97,179.94,3.05]
[1753006193748,3.25,179.96,179.92,5.5548]
[1753006194350,3.25,179.96,179.92,8.6048]
[1753006195051,3.25,179.96,179.92,5.5548]
[1753006195252,3.25,179.96,179.93,3.05]
[1753006195649,3.25,179.96,179.92,8.6048]
[1753006196153,8.8039,179.96,179.92,3.05]
[1753006196456,3.25,179.95,179.91,3.05]
[1753006197853,3.25,179.95,179.91,8.6053]
[1753006198054,3.25,179.95,179.92,3.05]
[1753006201358,8.8041,179.95,179.92,3.05]
[1753006201553,3.03,179.94,179.88,3.05]
[1753006201956,5.5549,179.93,179.88,3.05]
[1753006202255,3.03,179.92,179.88,3.05]
[1753006202551,8.585,179.92,179.88,3.05]
[1753006202755,3.03,179.91,179.88,3.05]
[1753006203060,3.03,179.93,179.82,3.05]
[1753006203946,3.03,179.93,179.88,5.556]
[1753006204150,3.03,179.92,179.89,3.05]
[1753006204357,3.03,179.94,179.89,3.05]
[1753006204559,3.03,179.94,179.9,5.5554]
[1753006204856,3.03,179.94,179.92,3.05]
[1753006206459,3.03,179.93,179.92,3.05]
[1753006206758,3.03,179.93,179.89,5.5558]
[1753006206955,3.03,179.93,179.89,3.05]
[1753006207146,3.03,179.92,179.89,3.05]
[1753006207858,3.03,179.92,179.89,8.6057]
[1753006208158,3.03,179.92,179.89,3.05]
[1753006208959,3.03,179.94,179.91,3.05]
[1753006209149,3.03,179.93,179.91,3.05]
[1753006209857,3.03,179.93,179.9,5.5556]
[1753006210054,3.03,179.93,179.92,3.05]
[1753006211658,3.03,179.93,179.91,8.6052]
[1753006211954,3.03,179.92,179.91,5.5552]
[1753006212159,3.03,179.95,179.83,15.78129506]
[1753006212559,3.03,179.95,179.84,3.05]
[1753006212754,3.03,179.94,179.9,5.5554]
[1753006212958,3.03,179.94,179.92,3.05]
[1753006213659,3.03,179.93,179.91,5.5553]
[1753006214358,3.03,179.93,179.92,3.05]
[1753006214756,3.03,179.95,179.85,4.66579506]
[1753006214957,3.03,179.95,179.87,3.05]
[1753006215166,6.19730754,180.01,179.87,4.66579506]
[1753006215459,3.03,179.98,179.94,3.05]
[1753006215663,3.03,179.98,179.85,6.21409439]
[1753006215664,3.03,179.98,179.87,4.66579506]
[1753006215864,3.03,179.98,179.95,3.05]
[1753006216164,3.03,180.0,179.95,3.05]
[1753006217366,5.5532,179.98,179.95,3.05]
[1753006217566,3.03,179.97,179.95,3.05]
[1753006218771,3.03,179.96,179.93,3.05]
[1753006219368,5.554,179.96,179.93,3.05]
[1753006219566,3.03,179.95,179.93,3.05]
[1753006221972,8.5838,179.96,179.91,5.5552]
[1753006222174,3.03,179.95,179.86,4.66579506]
[1753006222370,3.03,179.95,179.87,3.05]
[1753006222569,3.03,179.95,179.92,5.5549]
[1753006222772,3.03,179.95,179.93,3.05]
[1753006223776,3.03,179.95,179.94,3.05]
[1753006224676,3.03,179.95,179.92,8.6049]
[1753006224875,3.03,179.95,179.93,3.05]
[1753006228171,5.5536,179.97,179.93,5.5547]
[1753006228374,3.09,179.99,179.94,3.16]
[1753006228577,3.09,180.0,179.94,3.16]
[1753006229579,3.09,180.0,179.98,5.5529]
[1753006229779,3.09,180.0,179.99,3.16]
[1753006230978,3.09,180.0,179.99,8.7128]
[1753006234584,3.09,180.0,179.98,3.16]
[1753006235681,3.09,180.0,179.98,8.7131]
[1753006238081,3.09,180.0,179.98,3.16]
[1753006239286,5.5525,180.0,179.98,3.16]
[1753006239486,3.09,179.99,179.98,3.16]
[1753006240786,3.09,179.99,179.98,8.7131]
[1753006248191,3.09,179.99,179.98,3.16]
[1753006249299,3.09,179.99,179.98,8.7131]
[1753006251096,3.09,180.02,180.01,3.16]
[1753006252798,3.09,180.02,180.0,5.5525]
[1753006252999,8.6419,180.02,179.92,4.66472445]
[1753006253303,3.09,180.01,179.98,8.713]
[1753006256503,8.6422,180.01,179.98,3.16]
[1753006256703,3.09,180.0,179.98,3.16]
[1753006256904,3.09,180.0,179.96,3.16]
[1753006257404,8.6426,180.0,179.96,8.7135]
[1753006257606,5.5526,180.0,179.96,8.7135]
[1753006257899,5.5531,179.98,179.94,5.5542]
[1753006258101,3.25,179.97,179.94,8.6642]
[1753006258403,3.25,179.97,179.95,3.11]
[1753006258802,3.25,179.97,179.95,8.6639]
[1753006259003,5.5529,179.99,179.88,4.66472445]
[1753006259205,3.25,179.96,179.88,4.66472445]
[1753006259598,3.25,179.96,179.89,3.11]
[1753006260406,3.25,179.99,179.95,3.11]
[1753006261002,3.25,180.0,179.95,3.11]
[1753006261802,6.21171813,180.07,179.95,3.11]
[1753006262107,379.65171813,180.12,179.97,4.66472445]
[1753006262307,3.25,180.08,179.98,3.11]
[1753006263506,8.8002,180.08,180.04,5.5511]
[1753006263806,3.25,180.07,180.04,8.6611]
[1753006264007,3.25,180.07,179.97,3.11]
[1753006264708,3.25,180.07,179.97,7.77472445]
[1753006264905,3.25,180.07,180.04,8.6611]
[1753006267710,3.25,180.07,180.05,8.6609]
[1753006270014,3.25,180.07,180.05,5.5509]
[1753006271512,3.25,180.09,180.01,3.11]
[1753006271705,3.25,180.09,179.99,3.11]
[1753006272001,3.25,180.03,180.0,3.11]
[1753006272205,3.25,180.03,179.95,3.11]
[1753006272405,5.5521,180.02,179.95,3.11]
[1753006272608,3.25,180.01,179.95,3.11]
[1753006273004,108.19171813,180.1,179.94,3.11]
[1753006273203,3.25,180.09,179.94,3.11]
[1753006274313,3.25,180.0,179.94,3.11]
[1753006274516,3.25,180.0,179.95,3.11]
[1753006275912,3.25,180.0,179.99,5.5526]
[1753006276102,3.25,180.0,179.99,8.6626]
[1753006276714,3.25,180.0,179.98,8.663]
[1753006276916,3.25,180.0,179.98,3.11]
[1753006277516,3.25,179.99,179.98,8.6631]
[1753006283025,3.25,179.99,179.97,5.5533]
[1753006284726,3.25,179.99,179.96,8.6637]